bitfinex/quotes_ETHUSD_20241203
["timestamp","ask_amount","ask_price","bid_price","bid_amount"]
[1733217351426,3.01222693,3615.2,3615.1,2.81517986]
[1733217352453,3.01222693,3615.5,3615.4,2.76594]
[1733217352811,3.01222693,3615.5,3615.4,2.81444606]
[1733217356225,3.01222693,3615.5,3615.4,0.04850606]
[1733217356760,3.01222693,3615.5,3615.4,0.04776265]
[1733217357065,3.01222693,3615.5,3615.4,2.76594]
[1733217357272,3.01222693,3615.5,3615.4,2.81370265]
[1733217360464,0.55811247,3615.7,3615.6,2.76579]
[1733217360669,3.01222693,3615.9,3615.8,2.76563]
[1733217360986,3.01222693,3615.9,3615.8,2.81313867]
[1733217362125,3.01222693,3615.9,3615.8,0.04750867]
[1733217362334,4.44552693,3615.9,3615.4,2.76589]
[1733217362527,3.01222693,3615.5,3615.3,2.76596]
[1733217362759,3.01222693,3615.5,3615.0,1.5208]
[1733217363071,3.01222693,3615.8,3615.6,2.76577]
[1733217363298,3.01222693,3615.8,3615.0,1.949508]
[1733217363459,3.01222693,3615.8,3615.7,2.76571]
[1733217363844,3.01222693,3616.1,3615.4,2.76588]
[1733217364048,3.01222693,3616.1,3615.8,2.76559]
[1733217364891,3.01222693,3616.4,3615.7,4.28647]
[1733217365178,3.01222693,3616.4,3616.1,2.76534]
[1733217365535,3.01222693,3616.4,3615.7,1.5208]
[1733217365737,3.01222693,3616.4,3616.2,2.76531]
[1733217366380,3.01222693,3616.4,3616.0,2.76546]
[1733217366707,3.01222693,3616.4,3616.1,2.76537]
[1733217367812,3.01222693,3616.4,3616.2,2.76532]
[1733217367970,3.01222693,3616.4,3616.2,2.76528]
[1733217368918,3.01222693,3616.4,3616.3,2.76525]
[1733217369978,3.01222693,3616.4,3616.3,2.81042129]
[1733217370893,3.01222693,3616.4,3616.3,0.04517129]
[1733217371525,3.01222693,3616.4,3616.1,2.7654]
[1733217371682,3.01222693,3616.4,3616.3,0.04517129]
[1733217371886,3.01222693,3616.4,3616.2,0.04523477]
[1733217372206,3.01222693,3616.4,3615.7,1.5208]
[1733217372408,3.01222693,3616.1,3616.0,2.76548]
[1733217372804,3.01222693,3616.1,3616.0,0.04536172]
[1733217372974,3.01222693,3616.1,3615.8,2.76563]
[1733217373179,3.01222693,3616.1,3615.9,0.0454252]
[1733217374054,3.01222693,3616.1,3616.0,0.04536172]
[1733217374262,3.01222693,3616.1,3615.8,2.76556652]
[1733217374431,3.01222693,3616.1,3616.0,0.03493443]
[1733217374634,3.01222693,3616.1,3615.9,0.03941014]
[1733217374942,3.01222693,3616.1,3616.0,0.03934666]
[1733217375152,3.01222693,3616.1,3615.7,2.76571]
[1733217375523,1.4289,3616.0,3615.8,0.03947362]
[1733217375761,3.01222693,3615.8,3615.0,1.5367]
[1733217375966,3.01222693,3615.8,3615.2,2.76605]
[1733217376126,3.01222693,3615.4,3615.2,2.76605]
[1733217376326,3.01222693,3615.7,3615.5,2.76582]
[1733217376763,3.01222693,3615.7,3615.6,0.03828482]
[1733217377368,3.01222693,3616.1,3615.6,0.03828482]
[1733217377557,3.01222693,3616.1,3615.7,1.4819]
[1733217377744,0.56637255,3616.5,3615.7,1.4819]
[1733217377745,3.57859948,3616.5,3615.8,0.15201848]
[1733217377956,3.01222693,3616.2,3615.8,0.03815784]
[1733217378133,3.01222693,3616.2,3615.8,2.76561]
[1733217378134,4.44252693,3616.2,3615.8,2.76561]
[1733217378586,4.44252693,3616.2,3615.9,0.03809435]
[1733217380188,0.25726221,3616.1,3615.6,2.76578]
[1733217380350,3.01222693,3615.9,3615.4,2.76592]
[1733217380551,1.4303,3616.2,3615.7,0.03572615]
[1733217380798,1.68758609,3616.2,3615.2,4.31384]
[1733217380992,1.68758609,3616.2,3615.3,2.80193014]
[1733217381298,3.01222693,3615.7,3615.3,2.80193014]
[1733217381457,3.01222693,3615.4,3615.3,0.03598014]
[1733217382107,3.01222693,3615.4,3614.9,1.399]
[1733217382108,3.01222693,3615.4,3614.9,2.76631]
[1733217382267,3.01222693,3615.1,3614.9,2.76631]
[1733217382452,3.01222693,3615.1,3615.0,0.03497134]
[1733217382999,3.01222693,3614.8,3614.5,2.76661]
[1733217383179,3.01222693,3614.8,3614.6,2.76651]
[1733217383493,3.01222693,3614.8,3614.4,4.17588]
[1733217384487,3.01222693,3614.8,3614.6,2.76653]
[1733217384885,3.01222693,3614.8,3614.7,2.76648]
[1733217385262,3.01222693,3614.8,3614.5,2.7666]
[1733217385463,3.01222693,3614.8,3614.4,1.4092]
[1733217385464,3.01222693,3614.8,3614.6,2.76655]
[1733217385694,3.01222693,3614.8,3614.4,1.4092]
[1733217385900,3.01222693,3614.8,3614.5,2.76657]
[1733217386198,3.01222693,3614.8,3614.6,2.76654]
[1733217386411,3.01222693,3614.8,3614.4,2.7667]
[1733217386706,3.01222693,3614.8,3614.2,2.76685]
[1733217387003,3.01222693,3614.4,3614.2,2.76685]
[1733217388803,3.01222693,3614.4,3613.8,2.76716]
[1733217389100,3.01222693,3614.0,3613.8,2.76716]
[1733217389692,1.4251,3614.6,3613.6,1.445]
[1733217389693,3.01222693,3614.3,3614.0,2.76696]
[1733217389862,3.01222693,3614.3,3614.0,2.767]
[1733217390067,3.01222693,3614.3,3614.1,0.03472009]
[1733217390409,4.43732693,3614.6,3614.1,0.03472009]
[1733217390563,3.01222693,3614.6,3614.4,2.7667]
[1733217390768,3.01222693,3614.6,3614.2,1.4271]
[1733217390769,1.4273,3614.9,3614.5,0.03456909]
[1733217390978,0.25700739,3614.9,3614.7,2.76641]
[1733217391260,3.01222693,3615.0,3614.8,0.03434856]
[1733217391707,1.4997,3614.9,3614.0,2.76698]
[1733217391904,3.01222693,3614.2,3614.1,2.76693]
[1733217392064,3.01222693,3614.2,3613.9,2.76706]
[1733217392864,3.01222693,3614.2,3613.8,1.4323]
[1733217393205,3.01222693,3614.2,3613.7,2.76724]
[1733217394008,3.01222693,3614.2,3613.4,2.7674]
[1733217394211,3.01222693,3614.2,3613.5,2.76737]
[1733217394508,3.01222693,3613.9,3613.5,2.76737]
[1733217394996,4.43482693,3613.6,3613.3,2.76748]
[1733217395174,4.43482693,3613.6,3612.8,1.4523]
[1733217395522,1.4226,3613.6,3613.1,2.76769]
[1733217395818,1.4226,3613.6,3612.8,2.76786]
[1733217395976,4.18994,3613.6,3612.5,2.76809]
[1733217396170,3.01222693,3612.7,3612.5,2.76809]
[1733217398268,3.01222693,3612.7,3612.2,1.4019]
[1733217398466,3.01222693,3613.3,3613.0,2.76777]
[1733217398865,3.01222693,3613.3,3612.7,2.76795]
[1733217399071,3.01222693,3613.3,3612.8,2.76793]
[1733217399307,3.01222693,3613.3,3612.9,2.76784]
[1733217400087,3.01222693,3613.3,3613.0,0.03549254]
[1733217400513,3.01222693,3613.3,3613.0,2.76776]
[1733217400698,3.01222693,3613.3,3613.1,0.03542896]
[1733217400900,3.01222693,3614.0,3613.1,0.31574786]
[1733217401182,4.55962693,3613.2,3613.1,0.03542896]
[1733217401380,4.55962693,3613.2,3612.3,2.76826]
[1733217401621,4.55962693,3613.2,3612.2,1.4617]
[1733217401622,3.01222693,3612.7,3612.4,2.76821]
[1733217401782,3.01222693,3612.7,3612.4,2.80235413]
[1733217402320,3.01222693,3612.7,3612.4,0.03414413]
[1733217402522,3.01222693,3612.7,3612.5,2.76813]
[1733217402705,3.01222693,3612.7,3612.5,0.03408052]
[1733217402893,3.01222693,3613.1,3612.3,2.76831]
[1733217403078,3.01222693,3613.1,3612.6,0.03401692]
[1733217403278,3.01222693,3613.1,3612.3,3.22175977]
[1733217403493,3.01222693,3613.1,3612.9,2.76785]
[1733217403695,3.01222693,3613.1,3612.3,0.42576907]
[1733217403999,3.01222693,3613.1,3613.0,0.03433854]
[1733217404177,3.01222693,3613.1,3612.2,4.23005]
[1733217404376,3.01222693,3613.1,3613.0,0.03433854]
[1733217404684,3.01222693,3613.1,3613.0,0.03431855]
[1733217405090,3.01222693,3613.1,3612.2,1.4617]
[1733217405091,3.01222693,3613.1,3612.8,2.76786]
[1733217405487,3.01222693,3613.1,3612.9,0.03438214]
[1733217406231,3.01222693,3613.1,3612.6,2.76806]
[1733217406531,3.01222693,3613.1,3612.7,0.03450933]
[1733217407711,3.0,3613.0,3612.7,0.03450933]
[1733217407907,3.0,3613.0,3610.6,0.1]
[1733217407908,3.01222693,3612.4,3612.1,2.76845]
[1733217408196,3.01222693,3612.4,3611.9,1.4617]
[1733217408538,1.4207,3612.3,3611.6,2.76879]
[1733217408706,1.4207,3612.3,3611.9,2.76861]
[1733217409093,1.4207,3612.3,3612.0,0.03385758]
[1733217409288,1.4207,3612.3,3612.0,2.76852]
[1733217409542,1.4207,3612.3,3612.1,0.03379396]
[1733217409708,1.4359,3612.6,3612.1,0.03379396]
[1733217409895,4.4359,3612.6,3612.1,2.76844]
[1733217410095,4.4359,3612.6,3612.2,2.80227359]
[1733217410645,4.4359,3612.6,3612.3,2.76829]
[1733217410993,4.4359,3612.6,3612.4,0.03378637]
[1733217411741,4.4359,3612.6,3612.5,0.03372276]
[1733217412035,4.4359,3612.6,3612.5,0.0020252]
[1733217412220,1.4359,3612.6,3612.5,0.03078738]
[1733217412839,1.4271,3612.5,3611.6,2.76883]
[1733217412998,3.01222693,3611.9,3611.6,2.76883]
[1733217414030,3.01222693,3611.9,3611.7,2.76871]
[1733217414409,3.01222693,3612.2,3611.8,2.76868]
[1733217415438,3.01222693,3612.2,3611.6,2.76884]
[1733217416847,3.01222693,3612.2,3611.7,2.76875]
[1733217417807,3.01222693,3612.2,3611.8,2.76867]
[1733217419062,3.01222693,3612.2,3611.4,0.5547658]
[1733217419063,3.01222693,3612.2,3611.9,1.4552]
[1733217419362,3.01222693,3612.2,3612.1,2.76847]
[1733217419562,3.01222693,3612.2,3612.0,0.0300792]
[1733217419735,3.01222693,3612.2,3612.1,0.03001558]
[1733217420128,3.01222693,3612.2,3611.9,4.22379]
[1733217420471,3.01222693,3612.2,3612.0,0.03023584]
[1733217421327,3.01222693,3612.2,3612.1,2.76847]
[1733217421770,3.01222693,3612.2,3612.1,2.79864222]
[1733217422076,3.01222693,3612.2,3612.1,0.03017222]
[1733217422220,3.01222693,3612.2,3611.6,2.76879]
[1733217422428,3.01222693,3611.8,3611.7,0.03042672]
[1733217422648,3.01222693,3611.8,3611.6,2.76885]
[1733217422967,3.01222693,3611.8,3611.3,1.404]
[1733217422968,3.01222693,3611.8,3611.7,0.03056669]
[1733217423273,3.01222693,3611.8,3611.4,2.76899]
[1733217423425,3.01222693,3611.8,3611.5,0.03069396]
[1733217423972,2.98381688,3611.8,3611.4,2.769]
[1733217424130,2.98381688,3611.8,3611.6,0.03067032]
[1733217424470,2.98381688,3611.8,3611.7,0.03060669]
[1733217424621,2.98381688,3611.8,3611.6,2.76884]
[1733217424827,2.98381688,3611.8,3611.7,0.03060669]
[1733217426159,4.42691688,3611.8,3611.3,0.55120226]
[1733217426396,1.4431,3611.3,3610.8,2.7694]
[1733217426698,1.4431,3611.3,3610.4,1.5577]
[1733217426699,3.01222693,3611.1,3610.4,1.5577]
[1733217426859,3.01222693,3610.8,3610.5,2.76969]
[1733217427066,3.01222693,3610.8,3610.6,2.76959]
[1733217427259,3.01222693,3610.8,3610.7,2.76954]
[1733217428198,3.01222693,3611.1,3611.0,2.76931]
[1733217431606,3.01222693,3611.1,3610.8,2.76945]
[1733217431763,3.01222693,3610.9,3610.8,2.76945]
[1733217431962,3.01222693,3610.9,3610.6,2.76955]
[1733217432273,3.01222693,3610.9,3610.4,2.76976]
[1733217432607,3.01222693,3610.5,3610.4,2.76976]
[1733217433259,3.01222693,3610.5,3609.5,2.77044]
[1733217433260,4.44572693,3610.5,3610.2,2.7699]
[1733217433501,3.01222693,3610.3,3610.0,2.77005]
[1733217433800,1.4335,3610.5,3610.0,2.77005]
[1733217433801,3.01222693,3610.1,3610.0,2.77005]
[1733217434300,3.01222693,3610.1,3609.8,2.77022]
[1733217434510,3.01222693,3609.9,3609.3,0.0401682]
[1733217434662,1.4335,3610.5,3609.5,2.77046]
[1733217434663,3.01222693,3609.6,3609.5,2.77046]
[1733217438407,3.01222693,3609.6,3609.3,2.8107682]
[1733217439007,3.01222693,3609.6,3609.4,2.7705]
[1733217439160,3.01222693,3609.6,3609.5,2.77046]
[1733217440506,3.01222693,3609.6,3609.4,2.77051]
[1733217441303,3.01222693,3609.6,3609.3,0.0401682]
[1733217441304,3.01222693,3609.6,3609.5,2.77046]
[1733217444009,3.0,3610.3,3609.5,2.00932782]
[1733217444179,3.0,3610.3,3609.9,2.77015]
[1733217445178,3.0,3610.3,3610.0,0.03235648]
[1733217445383,3.01222693,3610.1,3610.0,0.03235648]
[1733217446511,3.01222693,3610.1,3609.6,2.77033]
[1733217446715,3.01222693,3609.7,3609.6,3.32033]
[1733217446922,4.46412693,3609.7,3609.6,3.32033]
[1733217447209,4.46412693,3609.7,3609.6,2.77033]
[1733217447975,4.46412693,3609.7,3609.3,0.0401682]
[1733217447976,4.46412693,3609.7,3609.4,3.32051]
[1733217448173,3.01222693,3609.5,3609.4,3.32051]
[1733217449062,3.01222693,3609.5,3609.3,0.0401682]
[1733217450668,3.01222693,3609.1,3609.0,3.33300389]
[1733217450886,3.01222693,3609.1,3609.0,3.88300389]
[1733217451056,3.01222693,3609.1,3609.0,3.33300389]
[1733217451262,4.53192693,3609.1,3608.7,2.77104]
[1733217451461,4.53192693,3609.1,3608.4,2.77129]
[1733217451462,3.01222693,3608.8,3608.4,2.77129]
[1733217451765,3.01222693,3608.5,3608.4,2.77129]
[1733217452565,3.01222693,3608.5,3607.8,1.5115]
[1733217452773,8.93,3609.0,3608.3,2.77137]
[1733217453073,8.93,3609.0,3608.4,2.77126]
[1733217453452,8.93,3609.0,3608.6,2.77108]
[1733217454680,8.93,3609.0,3608.4,2.7713]
[1733217454987,4.49202693,3608.5,3608.4,2.7713]
[1733217457451,3.01222693,3608.5,3608.4,2.7713]
[1733217457858,3.01222693,3608.8,3608.7,3.32108]
[1733217458258,8.93,3608.9,3608.8,3.321]
[1733217458672,3.01222693,3609.2,3609.1,3.32077]
[1733217459043,1.4393,3609.7,3609.4,2.77049]
[1733217459044,3.01222693,3609.5,3609.4,2.77049]
[1733217459590,3.01222693,3609.5,3609.4,3.32049]
[1733217459772,3.01222693,3609.8,3609.7,2.77023]
[1733217460141,3.01222693,3609.8,3609.7,2.80197161]
[1733217460770,3.01222693,3609.8,3609.7,0.03174161]
[1733217461481,3.01222693,3609.8,3609.4,2.77047]
[1733217461682,1.4393,3610.1,3609.5,2.80231903]
[1733217462685,1.4393,3610.1,3609.5,0.03186903]
[1733217462880,1.4393,3610.1,3609.5,2.77046]
[1733217463041,1.4393,3610.1,3609.7,2.77028]
[1733217463247,3.01222693,3609.8,3609.7,2.77028]
[1733217463564,3.01222693,3610.1,3610.0,2.77008]
[1733217463895,3.26867912,3610.1,3610.0,2.77008]
[1733217464189,3.01222693,3610.1,3610.0,2.77008]
[1733217464350,3.01222693,3610.1,3609.6,1.441]
[1733217464547,2.87722693,3609.8,3609.4,2.77047]
[1733217464746,3.01222693,3609.4,3609.3,2.77062]
[1733217465581,3.01222693,3609.4,3608.8,4.18395]
[1733217465780,3.01222693,3609.4,3609.2,2.77065]
[1733217466191,3.01222693,3609.4,3608.8,4.18395]
[1733217466396,3.01222693,3609.4,3609.3,2.77062]
[1733217466697,3.01222693,3609.4,3609.1,2.77075]
[1733217467352,3.01222693,3609.4,3609.2,2.77066]
[1733217467974,3.01222693,3609.4,3608.8,1.413]
[1733217468413,3.01222693,3609.4,3609.2,2.77069]
[1733217469074,3.01222693,3609.4,3609.2,2.64923681]
[1733217469275,3.01222693,3609.4,3608.8,1.413]
[1733217469508,3.01222693,3609.4,3609.0,2.77083]
[1733217469976,4.42402693,3609.4,3608.5,1.5121]
[1733217470184,4.42402693,3609.4,3608.7,2.77102]
[1733217470488,4.42402693,3609.4,3608.5,1.5121]
[1733217470489,3.01222693,3609.0,3608.5,2.77121]
[1733217471720,3.01222693,3609.0,3608.6,0.0323425]
[1733217472012,3.01222693,3609.0,3608.4,2.77131]
[1733217472210,3.01222693,3609.0,3608.7,0.03227876]
[1733217472418,1.5349,3608.9,3608.2,4.2835]
[1733217472619,1.5349,3608.9,3608.8,0.03221502]
[1733217472815,1.5349,3608.9,3608.3,2.77137]
[1733217473149,3.01222693,3608.7,3608.3,2.77137]
[1733217473457,1.5349,3608.9,3608.4,0.03246999]
[1733217473779,1.5349,3608.9,3608.2,2.77144]
[1733217474304,1.5164,3608.4,3607.9,0.025]
[1733217474477,3.01222693,3608.0,3607.9,0.025]
[1733217474874,3.01222693,3608.0,3607.9,0.05670432]
[1733217475318,3.01222693,3608.0,3607.9,0.025]
[1733217477523,3.01222693,3608.0,3607.9,2.82839432]
[1733217478117,4.42082693,3608.0,3607.9,0.05670432]
[1733217478483,3.01222693,3608.0,3607.9,0.05670432]
[1733217478715,3.01222693,3608.0,3607.9,2.79669]
[1733217478908,3.01222693,3608.0,3607.9,2.82839432]
[1733217479310,3.01222693,3608.3,3607.9,0.05670432]
[1733217479506,3.01222693,3608.3,3607.9,0.025]
[1733217479684,4.44192693,3608.6,3608.0,2.77161]
[1733217479881,4.44192693,3608.6,3608.1,0.03211059]
[1733217480200,0.1,3609.8,3607.9,0.025]
[1733217480201,0.56848706,3609.3,3609.2,2.77069]
[1733217480518,8.93,3610.5,3609.6,2.77039]
[1733217480685,3.26887508,3610.3,3609.9,2.77014]
[1733217480885,3.01222693,3610.0,3609.7,2.77029]
[1733217481125,3.01222693,3610.0,3609.5,1.5455]
[1733217481296,3.01222693,3610.0,3609.9,2.77015]
[1733217481497,1.4842,3610.7,3609.5,4.31591]
[1733217481724,3.01222693,3610.2,3610.0,2.77004]
[1733217482326,3.01222693,3610.2,3610.0,2.77007]
[1733217482637,3.01222693,3610.2,3609.9,2.77009]
[1733217482984,3.01222693,3610.2,3609.6,2.77031]
[1733217483184,3.01222693,3610.2,3609.5,1.5455]
[1733217483381,3.01222693,3610.2,3609.6,2.77037]
[1733217483797,3.01222693,3610.2,3609.5,1.5455]
[1733217484006,3.01222693,3610.2,3609.4,2.77053]
[1733217484827,3.01222693,3610.2,3609.5,2.77043]
[1733217485012,3.01222693,3610.2,3609.5,2.77045]
[1733217485331,3.01222693,3610.2,3609.6,2.77038]
[1733217485696,3.01222693,3610.2,3609.1,4.31621]
[1733217485920,3.01222693,3610.2,3609.3,2.77057]
[1733217486118,3.01222693,3610.2,3609.1,4.8021933]
[1733217486550,3.01222693,3610.2,3609.1,2.0314833]
[1733217486817,3.01222693,3610.2,3609.4,2.77053]
[1733217487216,1.4581,3610.1,3609.1,1.5455]
[1733217487726,1.4581,3610.1,3609.3,2.77061]
[1733217487922,1.4581,3610.1,3609.4,3.32406725]
[1733217488161,1.4581,3610.1,3609.6,2.77038]
[1733217488465,1.4581,3610.1,3609.6,2.77032]
[1733217488625,1.4581,3610.1,3609.3,2.77055]
[1733217488821,3.01222693,3609.8,3609.1,1.5455]
[1733217489066,1.4581,3610.1,3609.0,2.77083]
[1733217489067,3.01222693,3609.4,3609.0,2.77083]
[1733217489364,3.01222693,3609.4,3608.8,3.32175402]
[1733217489534,3.01222693,3609.4,3608.6,1.4735]
[1733217489741,3.01222693,3609.7,3608.9,2.7709]
[1733217489926,3.01222693,3609.7,3609.1,2.77076]
[1733217490143,3.01222693,3609.7,3609.2,0.03128271]
[1733217491277,1.4782,3609.6,3609.2,0.03128271]
[1733217491562,3.01222693,3609.4,3608.7,0.54322083]
[1733217491864,3.01222693,3609.1,3608.5,2.77121]
[1733217492269,3.01222693,3608.8,3608.1,2.77146]
[1733217492562,1.5006,3608.7,3608.1,2.77146]
[1733217492720,1.5006,3608.7,3607.8,1.4471]
[1733217492721,3.01222693,3608.5,3607.9,2.79667]
[1733217492919,3.01222693,3608.5,3608.0,2.77159]
[1733217493126,3.01222693,3608.5,3607.9,0.025]
[1733217493722,1.5006,3608.7,3608.1,2.77148]
[1733217494862,1.5006,3608.7,3608.1,2.77147]
[1733217495067,3.01222693,3608.5,3607.9,0.025]
[1733217495222,3.01222693,3608.5,3607.9,2.79662]
[1733217495431,3.01222693,3608.2,3607.9,0.025]
[1733217496728,1.5157,3608.1,3607.9,0.025]
[1733217498796,3.01222693,3608.2,3607.9,0.025]
[1733217499002,3.01222693,3608.2,3608.0,0.03262155]
[1733217500067,3.01222693,3608.2,3607.9,2.79668]
[1733217500477,3.01222693,3608.2,3608.0,0.03262822]
[1733217500678,8.93,3608.7,3608.3,2.77137]
[1733217500679,3.01222693,3608.5,3608.3,2.77137]
[1733217500864,8.93,3608.7,3607.9,0.05271451]
[1733217501070,3.01222693,3609.1,3608.4,0.03235651]
[1733217501363,3.01222693,3609.1,3608.8,2.771]
[1733217501790,3.01222693,3609.1,3608.9,0.03182418]
[1733217501991,1.99857284,3609.5,3608.9,0.03182418]
[1733217501992,3.01222693,3609.4,3609.1,2.77075]
[1733217502199,3.01222693,3609.4,3609.0,2.77082]
[1733217502358,3.01222693,3609.4,3609.2,0.031633]
[1733217502694,3.01222693,3609.4,3609.3,0.03156928]
[1733217502990,1.4724,3609.3,3607.5,2.77195]
[1733217503197,3.01222693,3608.7,3608.0,1.4587]
[1733217503491,3.01222693,3608.7,3608.0,1.884248]
[1733217503800,3.01222693,3608.7,3608.0,1.4587]
[1733217503958,3.01222693,3608.3,3607.9,2.79668]
[1733217504859,3.01222693,3608.3,3608.0,2.7716]
[1733217505315,3.01222693,3608.3,3608.1,0.03226406]
[1733217506109,3.01222693,3608.3,3607.9,0.025]
[1733217507101,3.01222693,3608.3,3608.0,0.03258147]
[1733217508297,3.01222693,3608.3,3608.1,2.77152]
[1733217508466,3.01222693,3608.3,3608.2,0.03254075]
[1733217508665,3.01222693,3608.3,3608.0,1.4284]
[1733217508963,3.01222693,3608.7,3608.4,2.77129]
[1733217509172,3.01222693,3608.7,3608.2,2.77145]
[1733217509859,3.01222693,3608.7,3608.3,0.03245362]
[1733217510065,3.01222693,3608.7,3608.2,2.77145]
[1733217510264,3.01222693,3608.7,3608.3,0.03245362]
[1733217510503,3.01222693,3608.7,3608.4,2.7713]
[1733217510718,3.01222693,3608.7,3608.0,1.4284]
[1733217511016,3.01222693,3608.7,3608.1,2.77154]
[1733217511177,3.01222693,3608.7,3608.1,2.80406439]
[1733217511379,3.01222693,3608.3,3608.1,0.03252439]
[1733217511681,3.01222693,3608.3,3607.9,2.79668]
[1733217512015,3.01222693,3608.3,3608.0,0.02940281]
[1733217515624,3.01222693,3608.3,3607.8,0.56157831]
[1733217515778,3.01222693,3607.9,3607.8,0.56157831]
[1733217516835,3.01222693,3607.9,3607.5,2.77199]
[1733217517492,3.01222693,3607.9,3607.3,4.30265]
[1733217517907,3.01222693,3607.9,3607.5,0.55183166]
[1733217519174,3.01222693,3607.9,3607.6,0.02780532]
[1733217519720,3.01222693,3607.9,3607.2,0.55]
[1733217520092,3.01222693,3607.9,3607.3,0.02832386]
[1733217520534,3.01222693,3607.9,3607.3,2.80040386]
[1733217520731,3.01222693,3607.9,3607.3,3.36831036]
[1733217521223,3.01222693,3607.9,3607.3,0.59623036]
[1733217521532,3.01222693,3607.9,3607.6,2.77185]
[1733217521737,3.01222693,3607.9,3607.7,0.02810213]
[1733217522094,3.01222693,3607.9,3607.7,2.79991213]
[1733217523387,3.01222693,3607.9,3607.7,4.36701213]
[1733217523588,3.01222693,3608.3,3607.7,1.59520213]
[1733217523795,3.01222693,3609.2,3607.7,1.59520213]
[1733217523796,0.2575848,3608.2,3607.8,0.55]
[1733217523994,0.25759423,3608.5,3608.2,2.77141]
[1733217524443,0.25759423,3608.5,3608.3,0.02961724]
[1733217524938,3.01222693,3608.6,3608.4,0.02954893]
[1733217525239,3.01222693,3608.6,3607.8,0.55]
[1733217525240,3.01222693,3608.6,3608.3,2.77137]
[1733217525397,3.01222693,3608.6,3607.9,2.77169]
[1733217525744,3.01222693,3608.6,3607.8,3.32175]
[1733217526035,3.01222693,3608.6,3608.2,2.77143]
[1733217526236,3.01222693,3608.6,3608.2,2.7714]
[1733217526440,3.01222693,3608.9,3608.4,1.5222]
[1733217526608,0.25774004,3608.8,3608.6,2.77115]
[1733217526936,0.25774004,3608.8,3608.7,0.02915805]
[1733217527546,0.25774004,3608.8,3608.7,2.80023805]
[1733217527766,3.01222693,3608.9,3608.8,2.771]
[1733217528134,3.01222693,3608.9,3608.8,2.80008976]
[1733217528529,3.01222693,3609.2,3608.8,2.80008976]
[1733217528739,0.25759002,3609.1,3609.0,2.77084]
[1733217528956,0.25759002,3609.1,3609.0,2.7997324]
[1733217529263,3.01222693,3609.2,3609.1,4.19097]
[1733217529641,3.01222693,3609.2,3609.1,4.22195745]
[1733217531265,3.01222693,3609.2,3609.1,0.03098745]
[1733217531640,3.01222693,3609.2,3608.7,3.32107]
[1733217531935,3.01222693,3609.2,3608.9,2.77092]
[1733217532123,3.01222693,3609.2,3609.0,0.03289425]
[1733217532536,3.01222693,3609.2,3609.0,2.80373425]
[1733217533666,3.01222693,3609.2,3609.0,0.03289425]
[1733217533981,3.01222693,3609.2,3608.8,2.771]
[1733217534270,3.01222693,3609.2,3609.1,0.03281459]
[1733217534861,3.01222693,3609.2,3608.9,2.77092]
[1733217535068,3.01222693,3609.2,3609.1,0.03281459]
[1733217535298,3.01222693,3609.2,3609.0,0.03588463]
[1733217535454,3.01222693,3609.2,3609.1,0.03281459]
[1733217537881,3.01222693,3609.2,3608.8,2.77098]
[1733217538081,3.01222693,3609.2,3609.1,0.0328271]
[1733217538389,3.01222693,3609.2,3609.1,0.03283544]
[1733217538592,6.02445386,3609.2,3609.1,0.03283544]
[1733217538748,1.5155,3609.0,3607.1,1.429]
[1733217538953,3.01222693,3607.8,3607.2,0.420132]
[1733217539277,3.01222693,3607.8,3607.7,2.77184]
[1733217539475,3.01222693,3608.1,3607.8,2.7717]
[1733217539665,3.01222693,3608.1,3607.7,2.77178]
[1733217539865,3.01222693,3608.1,3607.2,2.77222]
[1733217540049,3.01222693,3608.1,3607.7,2.77184]
[1733217540462,3.01222693,3608.1,3607.4,3.32207]
[1733217540803,3.01222693,3608.1,3607.7,2.77178]
[1733217540953,3.01222693,3608.1,3607.5,2.77199]
[1733217541155,3.01222693,3607.8,3607.3,2.77213]
[1733217541398,3.01222693,3607.8,3607.2,0.55]
[1733217541564,3.01222693,3607.8,3607.5,2.77199]
[1733217542162,3.01222693,3607.8,3607.2,0.7479]
[1733217542501,3.01222693,3607.8,3607.3,2.77214]
[1733217543475,3.01222693,3607.8,3607.1,1.429]
[1733217543802,3.01222693,3607.8,3607.4,2.77204]
[1733217544027,3.01222693,3607.8,3607.1,1.429]
[1733217544300,3.01222693,3607.8,3607.2,2.7722]
[1733217544486,3.01222693,3607.8,3607.1,1.429]
[1733217544863,3.01222693,3607.8,3607.4,2.772]
[1733217545667,1.4315,3608.2,3607.4,2.772]
[1733217545668,3.01222693,3607.5,3607.4,2.772]
[1733217546368,3.01222693,3607.5,3607.4,0.03339366]
[1733217546614,3.01222693,3607.5,3607.1,1.429]
[1733217546778,3.01222693,3607.5,3607.2,2.7722]
[1733217546974,3.01222693,3607.5,3607.3,0.03347339]
[1733217547303,3.01222693,3607.5,3607.3,2.77213]
[1733217547510,3.01222693,3607.5,3607.4,0.02917392]
[1733217549807,3.01222693,3607.5,3607.3,2.77213]
[1733217550003,3.01222693,3607.5,3607.4,0.02917392]
[1733217550794,3.01222693,3607.5,3607.2,2.77223]
[1733217551003,3.01222693,3607.5,3607.4,0.03282066]
[1733217551202,3.01222693,3607.5,3607.2,2.77223]
[1733217551529,3.01222693,3607.5,3607.4,0.03282066]
[1733217551738,3.01222693,3607.5,3607.3,0.03290039]
[1733217552024,3.01222693,3607.5,3607.4,0.03282066]
[1733217552331,3.01222693,3607.5,3607.2,2.77223]
[1733217552501,3.01222693,3607.5,3607.4,0.03282066]
[1733217552703,3.01222693,3607.5,3607.3,2.80503039]
[1733217553024,3.01222693,3607.5,3607.4,2.80489066]
[1733217553580,3.01222693,3607.5,3607.4,4.24479066]
[1733217553894,3.01222693,3607.8,3607.7,2.77178]
[1733217554332,3.01222693,3607.8,3607.7,2.80447423]
[1733217554649,3.01222693,3607.8,3607.7,0.03269423]
[1733217554812,3.01222693,3607.8,3607.4,2.14160407]
[1733217555015,3.01222693,3607.8,3607.7,2.80453423]
[1733217555367,3.01222693,3607.8,3607.5,0.55]
[1733217555524,3.01222693,3607.8,3607.7,2.79959583]
[1733217555708,3.01222693,3607.8,3607.7,2.77184]
[1733217555909,3.01222693,3607.8,3607.7,2.80728196]
[1733217558043,3.01222693,3607.8,3607.7,0.03544196]
[1733217558428,3.01222693,3607.8,3607.4,2.77207]
[1733217558635,3.01222693,3607.8,3607.7,0.03544196]
[1733217559148,3.01222693,3607.8,3607.4,2.77207]
[1733217559616,3.01222693,3607.8,3607.5,0.0356159]